[Event "Berliner Meisterschaft 2023"]
[Site "Berlin"]
[Date "2023.04.15"]
[Round "8.6"]
[White "Strache, Micheal"]
[Black "Georg, Tscheuschner"]
[Result "0-1"]
[TimeControl "90 minutes / 40 moves + 30 minutes + 30 seconds"]
[WhiteFideId "4693183"]
[BlackFideId "12935549"]
[WhiteElo "2287"]
[BlackElo "2185"]

1. e4 {[%clk 01:30:57]} {[%emt 00:00:02]} c5 {[%clk 01:30:50]} {[%emt
00:00:11]} 2. c3 {[%clk 01:31:22]} {[%emt 00:00:05]} Nf6 {[%clk 01:30:17]}
{[%emt 00:01:03]} 3. e5 {[%clk 01:31:46]} {[%emt 00:00:07]} Nd5 {[%clk
01:30:42]} {[%emt 00:00:05]} 4. Nf3 {[%clk 01:31:58]} {[%emt 00:00:17]} d6
{[%clk 01:30:42]} {[%emt 00:00:31]} 5. Bc4 {[%clk 01:31:13]} {[%emt 00:01:15]}
Nb6 {[%clk 01:30:57]} {[%emt 00:00:15]} 6. Bb3 {[%clk 01:31:33]} {[%emt
00:00:10]} c4 {[%clk 01:29:03]} {[%emt 00:02:25]} 7. Bc2 {[%clk 01:31:58]}
{[%emt 00:00:05]} dxe5 {[%clk 01:29:20]} {[%emt 00:00:13]} 8. Nxe5 {[%clk
01:32:22]} {[%emt 00:00:05]} Qd5 {[%clk 01:29:36]} {[%emt 00:00:14]} 9. Qe2
{[%clk 01:32:43]} {[%emt 00:00:08]} f6 {[%clk 01:27:07]} {[%emt 00:03:00]} 10.
Nf3 {[%clk 01:32:47]} {[%emt 00:00:26]} Qe6 {[%clk 01:27:25]} {[%emt 00:00:12]}
11. b3 {[%clk 01:32:33]} {[%emt 00:00:44]} Qxe2+ {[%clk 01:24:53]} {[%emt
00:03:02]} 12. Kxe2 {[%clk 01:32:58]} {[%emt 00:00:06]} e5 {[%clk 01:19:19]}
{[%emt 00:06:03]} 13. Na3 {[%clk 01:32:16]} {[%emt 00:01:12]} Bxa3 {[%clk
01:16:29]} {[%emt 00:03:20]} 14. Bxa3 {[%clk 01:32:36]} {[%emt 00:00:11]} Nc6
{[%clk 01:16:53]} {[%emt 00:00:06]} 15. Bc5 {[%clk 00:49:48]} {[%emt 00:43:18]}
Nd5 {[%clk 01:10:34]} {[%emt 00:06:49]} 16. Rhe1 {[%clk 00:39:56]} {[%emt
00:10:22]} Be6 {[%clk 01:03:25]} {[%emt 00:07:38]} 17. Kf1 {[%clk 00:38:49]}
{[%emt 00:01:37]} O-O-O {[%clk 01:01:38]} {[%emt 00:02:17]} 18. Nd4 {[%clk
00:28:05]} {[%emt 00:11:13]} Ndb4 {[%clk 00:37:55]} {[%emt 00:24:14]} 19. Nxe6
{[%clk 00:19:39]} {[%emt 00:08:56]} Nxc2 {[%clk 00:36:34]} {[%emt 00:01:50]} 20.
Nxd8 {[%clk 00:20:00]} {[%emt 00:00:09]} Rxd8 {[%clk 00:36:31]} {[%emt
00:00:33]} 21. Ke2 {[%clk 00:19:51]} {[%emt 00:00:39]} Rd5 {[%clk 00:26:00]}
{[%emt 00:11:02]} 22. Bf8 {[%clk 00:19:38]} {[%emt 00:00:42]} Nxe1 {[%clk
00:24:18]} {[%emt 00:02:12]} 23. Kxe1 {[%clk 00:19:30]} {[%emt 00:00:38]} cxb3
{[%clk 00:20:07]} {[%emt 00:04:41]} 24. axb3 {[%clk 00:19:48]} {[%emt
00:00:13]} g6 {[%clk 00:20:25]} {[%emt 00:00:11]} 25. Bg7 {[%clk 00:14:30]}
{[%emt 00:05:48]} f5 {[%clk 00:18:57]} {[%emt 00:01:58]} 26. b4 {[%clk
00:14:28]} {[%emt 00:00:33]} a6 {[%clk 00:15:37]} {[%emt 00:03:50]} 27. Bh6
{[%clk 00:11:22]} {[%emt 00:03:36]} Kd7 {[%clk 00:14:36]} {[%emt 00:01:31]} 28.
Ke2 {[%clk 00:10:42]} {[%emt 00:01:10]} Ke6 {[%clk 00:14:10]} {[%emt 00:00:56]}
29. f3 {[%clk 00:09:30]} {[%emt 00:01:42]} Rd7 {[%clk 00:06:52]} {[%emt
00:07:47]} 30. Be3 {[%clk 00:08:47]} {[%emt 00:01:13]} Ne7 {[%clk 00:06:45]}
{[%emt 00:00:37]} 31. Ra5 {[%clk 00:08:41]} {[%emt 00:00:37]} Rd5 {[%clk
00:04:48]} {[%emt 00:02:27]} 32. Bc5 {[%clk 00:08:27]} {[%emt 00:00:45]} Nc6
{[%clk 00:04:55]} {[%emt 00:00:23]} 33. Ra1 {[%clk 00:06:43]} {[%emt 00:02:14]}
Rd7 {[%clk 00:04:31]} {[%emt 00:00:54]} 34. d3 {[%clk 00:06:29]} {[%emt
00:00:44]} Ne7 {[%clk 00:04:02]} {[%emt 00:00:59]} 35. Be3 {[%clk 00:05:41]}
{[%emt 00:01:17]} Nd5 {[%clk 00:04:20]} {[%emt 00:00:13]} 36. Bd2 {[%clk
00:06:01]} {[%emt 00:00:09]} Rc7 {[%clk 00:04:22]} {[%emt 00:00:29]} 37. Ra3
{[%clk 00:05:41]} {[%emt 00:00:50]} Rc6 {[%clk 00:02:54]} {[%emt 00:01:58]} 38.
Rb3 {[%clk 00:05:38]} {[%emt 00:00:33]} b5 {[%clk 00:02:02]} {[%emt 00:01:22]}
39. Ra3 {[%clk 00:05:41]} {[%emt 00:00:27]} g5 {[%clk 00:01:14]} {[%emt
00:01:18]} 40. c4 {[%clk 00:02:12]} {[%emt 00:03:59]} Nf4+ {[%clk 00:00:58]}
{[%emt 00:00:46]} 41. Kf1 {[%clk 00:10:47]} {[%emt 00:21:55]} Rd6 {[%clk
00:18:16]} {[%emt 00:13:12]} 42. c5 {[%clk 00:10:23]} {[%emt 00:00:54]} Rc6
{[%clk 00:17:52]} {[%emt 00:00:53]} 43. g3 {[%clk 00:07:06]} {[%emt 00:03:48]}
Nd5 {[%clk 00:17:27]} {[%emt 00:00:55]} 44. Ra1 {[%clk 00:06:33]} {[%emt
00:01:02]} h5 {[%clk 00:10:47]} {[%emt 00:07:10]} 45. h3 {[%clk 00:05:17]}
{[%emt 00:01:46]} g4 {[%clk 00:06:44]} {[%emt 00:04:33]} 46. hxg4 {[%clk
00:05:32]} {[%emt 00:00:16]} fxg4 {[%clk 00:06:46]} {[%emt 00:00:28]} 47. fxg4
{[%clk 00:04:59]} {[%emt 00:01:02]} hxg4 {[%clk 00:07:14]} {[%emt 00:00:02]} 48.
Ke2 {[%clk 00:05:26]} {[%emt 00:00:03]} Ne7 {[%clk 00:06:59]} {[%emt 00:00:46]}
49. Rh1 {[%clk 00:05:08]} {[%emt 00:00:49]} Nf5 {[%clk 00:07:24]} {[%emt
00:00:05]} 50. Be1 {[%clk 00:05:08]} {[%emt 00:00:30]} Kd5 {[%clk 00:06:53]}
{[%emt 00:01:01]} 51. Rh8 {[%clk 00:05:14]} {[%emt 00:00:25]} Rh6 {[%clk
00:03:56]} {[%emt 00:03:27]} 52. Rd8+ {[%clk 00:05:10]} {[%emt 00:00:34]} Kc6
{[%clk 00:04:22]} {[%emt 00:00:04]} 53. Bf2 {[%clk 00:04:57]} {[%emt 00:00:43]}
Rh2 {[%clk 00:03:14]} {[%emt 00:01:37]} 54. Kf1 {[%clk 00:04:08]} {[%emt
00:01:19]} Rh1+ {[%clk 00:03:24]} {[%emt 00:00:20]} 55. Kg2 {[%clk 00:04:34]}
{[%emt 00:00:03]} Rb1 {[%clk 00:03:38]} {[%emt 00:00:15]} 56. Rf8 {[%clk
00:04:47]} {[%emt 00:00:17]} Ne7 {[%emt 00:02:02]} 57. Rf6+ {[%clk 00:04:55]}
Kc7 {[%clk 00:02:53]} {[%emt 00:00:05]} 58. Rf7 {[%clk 00:02:35]} {[%emt
00:02:50]} Kd7 {[%clk 00:02:40]} {[%emt 00:00:44]} 59. c6+ {[%clk 00:01:03]}
{[%emt 00:02:03]} Ke6 {[%clk 00:02:41]} {[%emt 00:00:28]} 60. Rg7 {[%clk
00:01:09]} {[%emt 00:00:24]} Nxc6 {[%clk 00:02:50]} {[%emt 00:00:22]} 61. Rxg4
{[%clk 00:00:47]} {[%emt 00:00:51]} Rxb4 {[%clk 00:01:40]} {[%emt 00:01:40]} 62.
Rg6+ {[%clk 00:01:03]} {[%emt 00:00:14]} Kd5 {[%clk 00:02:03]} {[%emt
00:00:07]} 63. Rg8 {[%clk 00:00:58]} {[%emt 00:00:36]} a5 {[%clk 00:01:52]}
{[%emt 00:00:41]} 64. Ra8 {[%clk 00:01:20]} {[%emt 00:00:07]} a4 {[%clk
00:02:11]} {[%emt 00:00:10]} 65. Kf3 {[%clk 00:01:40]} {[%emt 00:00:10]} Nd4+
{[%clk 00:02:00]} {[%emt 00:00:41]} 66. Bxd4 {[%clk 00:01:20]} {[%emt
00:00:51]} Kxd4 {[%clk 00:02:25]} {[%emt 00:00:05]} 67. Rd8+ {[%clk 00:01:14]}
{[%emt 00:00:36]} Kc3 {[%clk 00:02:50]} {[%emt 00:00:05]} 68. g4 {[%clk
00:01:38]} {[%emt 00:00:07]} a3 {[%clk 00:03:05]} {[%emt 00:00:15]} 0-1

[Event "Berliner Meisterschaft 2023"]
[Site "Berlin"]
[Date "2023.04.15"]
[Round "8.7"]
[White "Haug, Havard"]
[Black "Eilenberg, Jonas"]
[Result "1/2-1/2"]
[TimeControl "90 minutes / 40 moves + 30 minutes + 30 seconds"]
[WhiteFideId "1547887"]
[BlackFideId "16204271"]
[WhiteElo "2090"]
[BlackElo "2227"]

1. e4 {[%clk 01:30:53]} {[%emt 00:00:03]} e6 {[%clk 01:30:47]} {[%emt
00:00:16]} 2. d3 {[%clk 01:31:17]} {[%emt 00:00:06]} d5 {[%clk 01:31:12]}
{[%emt 00:00:05]} 3. Nd2 {[%clk 01:31:41]} {[%emt 00:00:06]} Nf6 {[%clk
01:31:35]} {[%emt 00:00:07]} 4. Ngf3 {[%clk 01:32:05]} {[%emt 00:00:05]} Nc6
{[%clk 01:31:58]} {[%emt 00:00:08]} 5. g3 {[%clk 01:32:08]} {[%emt 00:00:27]}
dxe4 {[%clk 01:31:08]} {[%emt 00:01:20]} 6. dxe4 {[%clk 01:31:57]} {[%emt
00:00:40]} e5 {[%clk 01:31:26]} {[%emt 00:00:12]} 7. Bg2 {[%clk 01:32:07]}
{[%emt 00:00:19]} Bc5 {[%clk 01:31:49]} {[%emt 00:00:08]} 8. O-O {[%clk
01:32:19]} {[%emt 00:00:18]} O-O {[%clk 01:32:08]} {[%emt 00:00:11]} 9. Qe2
{[%clk 01:32:09]} {[%emt 00:00:40]} Qe7 {[%clk 01:32:02]} {[%emt 00:00:36]} 10.
Nb3 {[%clk 01:29:39]} {[%emt 00:03:00]} Bb6 {[%clk 01:31:25]} {[%emt 00:01:06]}
11. Be3 {[%clk 01:27:34]} {[%emt 00:02:36]} Bxe3 {[%clk 01:28:21]} {[%emt
00:03:34]} 12. Qxe3 {[%clk 01:27:29]} {[%emt 00:00:35]} a5 {[%clk 01:26:37]}
{[%emt 00:02:14]} 13. a4 {[%clk 01:21:22]} {[%emt 00:06:37]} Be6 {[%clk
01:18:21]} {[%emt 00:08:45]} 14. Nbd2 {[%clk 01:18:10]} {[%emt 00:03:42]} Rad8
{[%clk 01:14:49]} {[%emt 00:04:02]} 15. c3 {[%clk 01:11:38]} {[%emt 00:07:03]}
Rd7 {[%clk 01:11:44]} {[%emt 00:03:35]} 16. h3 {[%clk 01:09:00]} {[%emt
00:03:08]} Rfd8 {[%clk 01:10:59]} {[%emt 00:01:15]} 17. Rfe1 {[%clk 01:05:58]}
{[%emt 00:03:31]} Rd3 {[%clk 01:00:31]} {[%emt 00:10:59]} 18. Qe2 {[%clk
01:06:10]} {[%emt 00:00:18]} Qd7 {[%clk 00:59:39]} {[%emt 00:01:22]} 19. Nf1
{[%clk 01:05:55]} {[%emt 00:00:46]} Bc4 {[%clk 00:45:40]} {[%emt 00:14:28]} 20.
Ne3 {[%clk 01:02:54]} {[%emt 00:03:31]} Ba6 {[%clk 00:44:11]} {[%emt 00:02:00]}
21. Qc2 {[%clk 01:02:30]} {[%emt 00:00:52]} Nxe4 {[%emt 00:11:35]} 22. Ng4
{[%emt 00:00:07]} Nf6 {[%emt 00:00:13]} 23. Ne3 1/2-1/2

[Event "Berliner Meisterschaft 2023"]
[Site "Berlin"]
[Date "2023.04.15"]
[Round "8.8"]
[White "Niehaus, Frank"]
[Black "Richter, Michael"]
[Result "0-1"]
[TimeControl "90 minutes / 40 moves + 30 minutes + 30 seconds"]
[BlackTitle "GM"]
[WhiteFideId "24600490"]
[BlackFideId "4618920"]
[WhiteElo "2142"]
[BlackElo "2465"]

1. e4 {[%clk 01:30:50]} {[%emt 00:00:08]} e6 {[%clk 01:27:06]} {[%emt
00:03:54]} 2. d4 {[%clk 01:31:04]} {[%emt 00:00:16]} d5 {[%clk 01:27:30]}
{[%emt 00:00:06]} 3. exd5 {[%clk 01:31:15]} {[%emt 00:00:20]} exd5 {[%clk
01:27:51]} {[%emt 00:00:08]} 4. c4 {[%clk 01:31:31]} {[%emt 00:00:13]} Nf6
{[%clk 01:27:49]} {[%emt 00:00:32]} 5. Nc3 {[%clk 01:31:32]} {[%emt 00:00:30]}
Be7 {[%clk 01:26:17]} {[%emt 00:02:01]} 6. Nf3 {[%clk 01:31:35]} {[%emt
00:00:28]} O-O {[%clk 01:26:34]} {[%emt 00:00:13]} 7. Bd3 {[%clk 01:31:22]}
{[%emt 00:00:43]} Nc6 {[%clk 01:26:36]} {[%emt 00:00:27]} 8. O-O {[%clk
01:26:47]} {[%emt 00:05:06]} Nb4 {[%clk 01:26:54]} {[%emt 00:00:12]} 9. Be2
{[%clk 01:21:13]} {[%emt 00:06:04]} dxc4 {[%clk 01:26:31]} {[%emt 00:00:53]} 10.
Bxc4 {[%clk 01:21:39]} {[%emt 00:00:05]} c6 {[%clk 01:26:08]} {[%emt 00:00:52]}
11. Ne5 {[%clk 01:19:13]} {[%emt 00:02:56]} Nbd5 {[%clk 01:18:37]} {[%emt
00:08:01]} 12. Re1 {[%clk 01:17:22]} {[%emt 00:02:21]} Be6 {[%clk 01:17:57]}
{[%emt 00:01:09]} 13. Bb3 {[%clk 01:13:40]} {[%emt 00:04:12]} Re8 {[%clk
01:16:50]} {[%emt 00:01:37]} 14. Bg5 {[%clk 01:11:02]} {[%emt 00:03:09]} Qb6
{[%clk 01:10:48]} {[%emt 00:06:32]} 15. Nc4 {[%clk 01:00:38]} {[%emt 00:10:55]}
Qc7 {[%clk 01:08:59]} {[%emt 00:02:18]} 16. Ne5 {[%clk 00:58:31]} {[%emt
00:02:37]} Nxc3 {[%clk 00:51:30]} {[%emt 00:17:59]} 17. bxc3 {[%clk 00:56:05]}
{[%emt 00:02:57]} Nd5 {[%clk 00:51:47]} {[%emt 00:00:12]} 18. Bxe7 {[%clk
00:55:33]} {[%emt 00:01:02]} Rxe7 {[%clk 00:50:29]} {[%emt 00:01:48]} 19. Rc1
{[%clk 00:52:51]} {[%emt 00:03:12]} Rae8 {[%clk 00:48:04]} {[%emt 00:02:55]} 20.
Qd2 {[%clk 00:44:14]} {[%emt 00:09:07]} Nf6 {[%clk 00:40:31]} {[%emt 00:08:03]}
21. h3 {[%clk 00:39:08]} {[%emt 00:05:36]} h6 {[%clk 00:38:28]} {[%emt
00:02:33]} 22. Nd3 {[%clk 00:35:17]} {[%emt 00:04:21]} b6 {[%clk 00:35:37]}
{[%emt 00:03:21]} 23. Re5 {[%clk 00:32:15]} {[%emt 00:03:32]} Nd7 {[%clk
00:34:20]} {[%emt 00:01:46]} 24. Re3 {[%clk 00:31:13]} {[%emt 00:01:33]} Qd6
{[%clk 00:25:09]} {[%emt 00:09:41]} 25. Rce1 {[%clk 00:30:56]} {[%emt
00:00:47]} Bf5 {[%clk 00:23:33]} {[%emt 00:02:06]} 26. Rxe7 {[%clk 00:29:42]}
{[%emt 00:01:44]} Rxe7 {[%clk 00:23:52]} {[%emt 00:00:11]} 27. Rxe7 {[%clk
00:30:06]} {[%emt 00:00:06]} Qxe7 {[%clk 00:24:17]} {[%emt 00:00:04]} 28. Ne1
{[%clk 00:26:51]} {[%emt 00:03:45]} Kf8 {[%clk 00:22:51]} {[%emt 00:01:56]} 29.
Nf3 {[%clk 00:26:50]} {[%emt 00:00:32]} Qe4 {[%clk 00:19:53]} {[%emt 00:03:28]}
30. Qe3 {[%clk 00:24:56]} {[%emt 00:02:24]} c5 {[%clk 00:18:16]} {[%emt
00:02:07]} 31. Nd2 {[%clk 00:24:57]} {[%emt 00:00:29]} Qxe3 {[%clk 00:13:53]}
{[%emt 00:04:53]} 32. fxe3 {[%clk 00:25:22]} {[%emt 00:00:05]} cxd4 {[%clk
00:12:16]} {[%emt 00:02:07]} 33. exd4 {[%clk 00:25:21]} {[%emt 00:00:31]} Nf6
{[%clk 00:08:16]} {[%emt 00:04:31]} 34. Nf3 {[%clk 00:24:37]} {[%emt 00:01:14]}
Bd7 {[%clk 00:05:41]} {[%emt 00:03:04]} 35. c4 {[%clk 00:24:31]} {[%emt
00:00:36]} Ne4 {[%clk 00:03:49]} {[%emt 00:02:21]} 36. Kf1 {[%clk 00:21:10]}
{[%emt 00:03:51]} g5 {[%clk 00:03:51]} {[%emt 00:00:28]} 37. Ne5 {[%clk
00:20:25]} {[%emt 00:01:15]} Be8 {[%clk 00:04:05]} {[%emt 00:00:16]} 38. Ke2
{[%clk 00:19:17]} {[%emt 00:01:39]} f5 {[%clk 00:01:53]} {[%emt 00:02:42]} 39.
Ke3 {[%clk 00:19:16]} {[%emt 00:00:32]} Ng3 {[%clk 00:02:04]} {[%emt 00:00:18]}
40. a4 {[%clk 00:12:59]} {[%emt 00:06:47]} Ke7 {[%clk 00:01:14]} {[%emt
00:01:19]} 41. a5 {[%clk 00:08:32]} {[%emt 00:04:57]} f4+ {[%clk 00:29:29]}
{[%emt 00:02:15]} 42. Kd3 {[%clk 00:36:21]} {[%emt 00:02:41]} Kd6 {[%clk
00:29:47]} {[%emt 00:00:11]} 43. axb6 {[%clk 00:30:15]} {[%emt 00:06:37]} axb6
{[%clk 00:30:12]} {[%emt 00:00:05]} 44. c5+ {[%clk 00:28:51]} {[%emt 00:01:55]}
bxc5 {[%clk 00:29:44]} {[%emt 00:00:57]} 45. Nc4+ {[%clk 00:29:16]} {[%emt
00:00:05]} Kc7 {[%clk 00:27:58]} {[%emt 00:02:16]} 46. dxc5 {[%clk 00:28:39]}
{[%emt 00:01:07]} Bc6 {[%clk 00:27:50]} {[%emt 00:00:38]} 47. Ne5 {[%clk
00:18:42]} {[%emt 00:10:27]} Bxg2 {[%clk 00:27:50]} {[%emt 00:00:29]} 48. Be6
{[%clk 00:19:06]} {[%emt 00:00:05]} Ne4 {[%clk 00:21:04]} {[%emt 00:07:16]} 49.
Bg4 {[%clk 00:17:59]} {[%emt 00:01:37]} Nf2+ {[%clk 00:12:29]} {[%emt
00:09:04]} 50. Ke2 {[%clk 00:18:08]} {[%emt 00:00:22]} Nxg4 {[%clk 00:12:10]}
{[%emt 00:00:49]} 51. hxg4 {[%clk 00:18:20]} {[%emt 00:00:18]} Bd5 {[%clk
00:12:22]} {[%emt 00:00:18]} 52. Kd3 {[%clk 00:16:36]} {[%emt 00:02:14]} Be6
{[%clk 00:10:44]} {[%emt 00:02:08]} 53. Ke4 {[%clk 00:15:18]} {[%emt 00:01:49]}
Kb7 {[%clk 00:10:47]} {[%emt 00:00:27]} 54. Kd4 {[%clk 00:14:04]} {[%emt
00:01:44]} Ka6 {[%clk 00:11:09]} {[%emt 00:00:08]} 55. Ke4 {[%clk 00:12:30]}
{[%emt 00:02:04]} Kb5 {[%clk 00:08:06]} {[%emt 00:03:33]} 56. Kd4 {[%clk
00:12:51]} {[%emt 00:00:09]} Bc8 {[%clk 00:07:08]} {[%emt 00:01:27]} 57. c6
{[%clk 00:09:44]} {[%emt 00:03:38]} Be6 {[%clk 00:06:35]} {[%emt 00:01:02]} 58.
Ke4 {[%clk 00:06:57]} {[%emt 00:03:18]} Kc5 {[%clk 00:04:30]} {[%emt 00:02:34]}
59. c7 {[%clk 00:05:09]} {[%emt 00:02:18]} Kd6 {[%clk 00:04:38]} {[%emt
00:00:23]} 60. Nf7+ {[%clk 00:03:19]} {[%emt 00:02:20]} Kxc7 {[%clk 00:04:54]}
{[%emt 00:00:14]} 61. Nxh6 {[%clk 00:03:44]} {[%emt 00:00:05]} Kd6 {[%clk
00:05:03]} {[%emt 00:00:20]} 62. Nf5+ {[%clk 00:04:08]} {[%emt 00:00:06]} Bxf5+
{[%clk 00:05:17]} {[%emt 00:00:17]} 63. gxf5 {[%clk 00:04:10]} {[%emt
00:00:29]} Ke7 {[%clk 00:05:38]} {[%emt 00:00:09]} 64. Kf3 {[%clk 00:04:31]}
{[%emt 00:00:08]} Kf7 {[%clk 00:05:53]} {[%emt 00:00:14]} 0-1

[Event "Berliner Meisterschaft 2023"]
[Site "Berlin"]
[Date "2023.04.16"]
[Round "9.1"]
[White "Lagunow, Alexander"]
[Black "Baskin, Robert"]
[Result "1/2-1/2"]
[TimeControl "90 minutes / 40 moves + 30 minutes + 30 seconds"]
[WhiteTitle "IM"]
[BlackTitle "IM"]
[WhiteFideId "4616049"]
[BlackFideId "24662402"]
[WhiteElo "2341"]
[BlackElo "2442"]

1. Nf3 {[%clk 01:30:56]} {[%emt 00:00:03]} Nf6 {[%clk 01:30:04]} {[%emt
00:00:57]} 2. c4 {[%clk 01:31:15]} {[%emt 00:00:12]} e6 {[%clk 01:29:35]}
{[%emt 00:00:58]} 3. Nc3 {[%clk 01:30:51]} {[%emt 00:00:55]} d5 {[%clk
01:29:24]} {[%emt 00:00:40]} 4. d4 {[%clk 01:29:05]} {[%emt 00:02:16]} c5
{[%clk 01:25:21]} {[%emt 00:04:33]} 5. cxd5 {[%clk 01:26:13]} {[%emt 00:03:23]}
Nxd5 {[%clk 01:24:41]} {[%emt 00:01:10]} 6. e4 {[%clk 01:24:54]} {[%emt
00:01:49]} Nxc3 {[%clk 01:25:03]} {[%emt 00:00:08]} 7. bxc3 {[%clk 01:25:20]}
{[%emt 00:00:05]} cxd4 {[%clk 01:25:25]} {[%emt 00:00:07]} 8. cxd4 {[%clk
01:25:43]} {[%emt 00:00:07]} Bb4+ {[%clk 01:25:49]} {[%emt 00:00:05]} 9. Bd2
{[%clk 01:26:05]} {[%emt 00:00:08]} Bxd2+ {[%clk 01:26:12]} {[%emt 00:00:07]}
10. Qxd2 {[%clk 01:26:29]} {[%emt 00:00:06]} O-O {[%clk 01:26:37]} {[%emt
00:00:05]} 11. Bc4 {[%clk 01:22:47]} {[%emt 00:04:12]} Nd7 {[%clk 01:24:11]}
{[%emt 00:02:55]} 12. O-O {[%clk 01:21:19]} {[%emt 00:01:59]} b6 {[%clk
01:24:25]} {[%emt 00:00:16]} 13. Rfe1 {[%clk 01:19:29]} {[%emt 00:02:20]} Bb7
{[%clk 01:24:42]} {[%emt 00:00:13]} 14. Rad1 {[%clk 01:15:51]} {[%emt
00:04:08]} Rc8 {[%clk 01:22:07]} {[%emt 00:03:04]} 15. Bb3 {[%clk 01:12:11]}
{[%emt 00:04:11]} Re8 {[%clk 01:16:18]} {[%emt 00:06:18]} 16. h3 {[%clk
01:08:15]} {[%emt 00:04:27]} Nf6 {[%clk 01:12:48]} {[%emt 00:04:00]} 17. Qf4
{[%clk 01:06:33]} {[%emt 00:02:13]} Nh5 {[%clk 01:08:53]} {[%emt 00:04:24]} 18.
Qg4 {[%clk 01:00:12]} {[%emt 00:06:50]} Nf6 {[%clk 01:09:04]} {[%emt 00:00:20]}
19. Qf4 {[%clk 00:58:29]} {[%emt 00:02:13]} Nh5 {[%clk 01:07:54]} {[%emt
00:01:39]} 20. Qg4 {[%clk 00:58:43]} {[%emt 00:00:16]} Nf6 {[%clk 01:08:14]}
{[%emt 00:00:10]} 1/2-1/2